Cogmind - Beta 14 @@@ ROGUE MODE // 2024.10.04 @ 02:34:13 Player: binks Result: Destroyed by S-10 Pest with Light Assault Rifle Performance ------------- Evolutions (0) 0 Regions Visited (3) 600 Robots Destroyed (16) 80 Value Destroyed (487) 487 Prototype IDs (1) 20 Alien Tech Used (0) 0 Bonus (-236) -236 TOTAL SCORE: 951 Bonus ------- Friendly Fire -236 Cogmind --------- Core Integrity 0/250 Matter 244/300 Energy 125/125 System Corruption 0% Temperature Cool (0) Movement Walking (140) Location -10/Subcaves Parts ------- > --- POWER (1) -------- Light Ion Engine > --- PROPULSION (2) --- Makeshift Leg > --- UTILITY (2) ------ Targeting Computer Makeshift System Restoration Module > --- WEAPON (2) ------- Heavy Battle Rifle > --- INVENTORY (5) ---- Subdweller Optics Barrage Gun Battle Cannon Piercing Trap Peak State ------------ > --- POWER ------------ Light Ion Engine > --- PROPULSION ------- Makeshift Leg Makeshift Leg > --- UTILITY ---------- Subdweller Optics Makeshift System Restoration Module > --- WEAPON ----------- Heavy Battle Rifle Bore Cannon > --- INVENTORY -------- Subdweller Optics Barrage Gun Battle Cannon Piercing Trap [Rating: 24] Favorites ----------- Power Light Nuclear Core Engine Light Ion Engine Power Core Light Nuclear Core Propulsion Aluminum Leg Leg Aluminum Leg Utility Visual Processing Unit Device Subdweller Optics Storage Large Matter Pod Processor Visual Processing Unit Weapon Assault Rifle Energy Cannon Beam Cannon Ballistic Gun Assault Rifle Ballistic Cannon Battle Cannon Launcher Grenade Launcher Special Weapon Mining Laser Slashing Weapon Makeshift Sword Build | -11 -10 -10 -10 ------- Run | Yrd Mat Min Sub Slots Evolved . | . . . . Power . | . . . . Propulsion . | . . . . Utility . | . . . . Weapon . | . . . . Parts Attached 38 | 6 9 9 14 Power 6 | 2 2 . 2 Engine 5 | 2 1 . 2 Core 1 | . 1 . . Reactor . | . . . . Propulsion 9 | 2 2 2 3 Treads . | . . . . Leg 9 | 2 2 2 3 Wheel . | . . . . Hover . | . . . . Flight . | . . . . Utility 10 | . 3 2 5 Device 5 | . . 1 4 Storage 2 | . 1 1 . Processor 3 | . 2 . 1 Hackware . | . . . . Protection . | . . . . Artifact . | . . . . Weapon 13 | 2 2 5 4 Energy Gun . | . . . . Energy Cannon 2 | . . 2 . Ballistic Gun 6 | 2 1 1 2 Ballistic Cannon 2 | . . . 2 Launcher 1 | . 1 . . Special Weapon 1 | . . 1 . Impact Weapon . | . . . . Slashing Weapon 1 | . . 1 . Piercing Weapon . | . . . . Special Melee Weapon . | . . . . Unidentified Prototypes 1 | . . 1 . Parts Lost 11 | . 1 3 7 Power 1 | . . . 1 Propulsion 4 | . . 1 3 Utility 2 | . . 1 1 Weapon 4 | . 1 1 2 Highest Loss Streak 5 | . 1 2 5 To Critical Strikes . | . . . . Average Slot Usage (%) 91 | . 97 99 84 Engine 7 | . 11 . 11 Core 6 | . 3 14 2 Leg 24 | . 28 28 21 Device 4 | . . 2 7 Storage 6 | . 12 11 2 Processor 12 | . 13 14 10 Energy Cannon 1 | . . 3 . Ballistic Gun 18 | . 26 16 18 Ballistic Cannon 3 | . . . 6 Slashing Weapon 3 | . . 6 2 Peak Build Rating 24 | 5 10 21 24 Average Rating 12 | 3 7 12 13 On Entrance 7 | . 5 10 13 Naked Turns . | . . . . Heaviest Build 23 | 9 13 13 23 Greatest Support 40 | 20 20 20 40 Greatest Overweight (x) 1 | . . . 1 Average Overweight (x) . | . . . . Largest Inventory Capacity 5 | 5 5 5 5 Average Capacity 5 | 5 5 5 5 Most Carried 5 | 4 5 5 5 Average Carried 4 | 1 4 4 4 Final Capacity 5 | 5 5 5 5 Final Carried 4 | 4 4 4 4 Class Distribution -------------------- 50% | Scavenger-Mutant 40% | Mutant 8% | Derelict-Mutant Dominant Class ---------------- Mutant | -10/Materials Scavenger-Mutant | -10/Mines Scavenger-Mutant | -10/Subcaves Resources | -11 -10 -10 -10 ----------- Run | Yrd Mat Min Sub Matter Collected 981 | 278 284 178 241 Remotely . | . . . . Salvage Created 643 | 49 284 131 179 Parts 34 | 3 15 7 9 Haulers Intercepted . | . . . . Recyclers Shooed 1 | . 1 . . Parts Field Recycled . | . . . . Retrieved Matter . | . . . . Parts Self-Destructed 3 | . . . 3 Prevented . | . . . . Kills | -11 -10 -10 -10 ------- Run | Yrd Mat Min Sub Combat Hostiles Destroyed 12 | 1 6 3 2 Guns 11 | 1 6 2 2 Cannons 1 | . . 1 . Classes Destroyed 6 | 1 1 2 2 Tunneler 1 | . . 1 . Watcher 2 | . 2 . . Grunt 9 | 1 6 2 . Subdweller 2 | . . . 2 Assembled 1 | . . 1 . Thug 1 | . . . 1 Guerrilla 1 | . . . 1 Best Kill Streak 4 | 1 4 2 1 Combat Bots Only 4 | 1 4 1 1 Max Kills in Single Turn 1 | 1 1 1 1 Gunslinging . | . . . . Exploded . | . . . . Melee . | . . . . Uniques/NPCs Destroyed . | . . . . Combat | -11 -10 -10 -10 -------- Run | Yrd Mat Min Sub Hostile Shots Fired 95 | 4 31 5 55 Missed 23 | 1 6 1 15 Damage Taken 1377 | 33 331 357 656 Core 253 | 10 29 71 143 Absorbed by Shields . | . . . . Core Remaining (%) 96 | 96 . . . Volleys Fired 69 | 3 28 20 18 Largest 2 | 2 2 2 2 Hottest 100 | 40 40 100 90 Shots Fired 110 | 6 46 27 31 Gun 84 | 6 46 9 23 Cannon 14 | . . 6 8 Launcher . | . . . . Special 12 | . . 12 . Kinetic 92 | 6 46 9 31 Thermal 18 | . . 18 . Explosive . | . . . . Electromagnetic . | . . . . Robot Hit Streak 10 | 3 10 8 7 Robot Miss Streak 4 | 1 4 1 4 Penetration Max . | . . . . Secondary Targets 2 | . 2 . . Max Gunslinging Chain 1 | . 1 . . Shots Hit Robots 57 | 4 32 9 12 Core Hits 30 | 2 16 7 5 Critical Kills 1 | . . . 1 Critical Parts Destroyed . | . . . . Critical Strikes 1 | . . . 1 Destroy 1 | . . . 1 Melee Attacks 43 | . . 39 4 Impact . | . . . . Slashing 43 | . . 39 4 Piercing . | . . . . Sneak Attacks . | . . . . Combat Hostiles . | . . . . Follow-up Attacks . | . . . . Damage Inflicted 901 | 51 415 127 308 Guns 677 | 51 415 56 155 Cannons 116 | . . 71 45 Explosions . | . . . . Melee 108 | . . . 108 Ramming . | . . . . Kinetic 722 | 51 415 56 200 Thermal 71 | . . 71 . Explosive . | . . . . Electromagnetic . | . . . . Impact . | . . . . Slashing 108 | . . . 108 Piercing . | . . . . Highest Corruption 7 | . . 7 7 Average Corruption 4 | . . 1 6 Corruption Purged 7 | . . . 7 Corruption Blocked . | . . . . Effects 32 | . . 2 30 Message Errors 9 | . . 1 8 Matter Fused 7 | . . 1 6 Heat Flow Errors 5 | . . . 5 Energy Discharges 2 | . . . 2 Parts Fused 1 | . . . 1 Data Loss (minor) 3 | . . . 3 Data Loss (major) 1 | . . . 1 Misfires 1 | . . . 1 Alerts 1 | . . . 1 Weapon Failures 2 | . . . 2 Overload Shots . | . . . . Overflow Damage . | . . . . Projectiles . | . . . . Explosions . | . . . . Melee . | . . . . Knockbacks 1 | . . . 1 Impact . | . . . . Kinetic 1 | . . . 1 Secondary . | . . . . Self-Inflicted Damage . | . . . . Shots . | . . . . Rammed . | . . . . Targets Rammed . | . . . . Kicked . | . . . . Crushed . | . . . . Highest Temperature 272 | . 20 272 189 Average Temperature 113 | . 6 131 83 Received Heat Transfer 342 | 18 207 27 90 Effects 1 | . . 1 . Energy Bleed 1 | . . 1 . Siege Activations . | . . . . Robots Corrupted . | . . . . Combat Hostiles . | . . . . Parts Fried . | . . . . Impact Corruptions . | . . . . Robots Melted . | . . . . Combat Hostiles . | . . . . Parts Melted 2 | . . . 2 Heat Transferred 148 | . . 148 . Parts Sabotaged . | . . . . Parts Stolen . | . . . . Parts Stripped . | . . . . Power Chain Reactions . | . . . . Alert | -11 -10 -10 -10 ------- Run | Yrd Mat Min Sub Peak Influence 242 | 20 242 164 . Initial 94 | . 13 94 . Average 85 | 5 113 85 . Maximum Alert Level 1 | . 1 . . Low Security (%) 93 | 100 77 100 . Level 1 6 | . 22 . . Level 2 . | . . . . Level 3 . | . . . . Level 4 . | . . . . Level 5 . | . . . . High Security . | . . . . Max Security . | . . . . Squads Dispatched 1 | . 1 . . Investigation . | . . . . Extermination . | . . . . Reinforcement 1 | . 1 . . Assault . | . . . . Garrison . | . . . . Intercept . | . . . . Searches Triggered . | . . . . Construction Impeded . | . . . . Haulers Reinforced . | . . . . Active Scanning Responses . | . . . . Cargo Convoy Interrupts . | . . . . Stealth | -11 -10 -10 -10 --------- Run | Yrd Mat Min Sub Distress Signals . | . . . . Communications Jammed . | . . . . Distress Signals . | . . . . Times Spotted 35 | 1 11 5 18 Peak Tracking Total 6 | 1 4 2 6 Tactical Retreats 2 | . . 1 1 Traps | -11 -10 -10 -10 ------- Run | Yrd Mat Min Sub Traps Triggered . | . . . . Indirectly . | . . . . Trap Hack Attempts . | . . . . Triggered . | . . . . Disarmed . | . . . . Reprogrammed . | . . . . Reused . | . . . . Traps Extracted . | . . . . Installed . | . . . . Triggered . | . . . . Most Traps Carried 2 | . . 2 1 Machines | -11 -10 -10 -10 ---------- Run | Yrd Mat Min Sub Machines Disabled 1 | . 1 . . Max in Single Turn 1 | . 1 . . Machines Repaired . | . . . . Machines Dismantled . | . . . . Machines Sabotaged . | . . . . Overloaded Fab Kills . | . . . . Hacking | -11 -10 -10 -10 --------- Run | Yrd Mat Min Sub Machines Accessed 2 | . 2 . . Terminals 2 | . 2 . . Fabricators . | . . . . Repair Stations . | . . . . Recycling Units . | . . . . Scanalyzers . | . . . . Garrison Access . | . . . . Total Hacks 6 | . 6 . . Successful 4 | . 4 . . Failed 2 | . 2 . . Catastrophic . | . . . . Database Lockouts . | . . . . Manual . | . . . . Terminals 6 | . 6 . . Fabricators . | . . . . Repair Stations . | . . . . Recycling Units . | . . . . Scanalyzers . | . . . . Garrison Access . | . . . . Terminal Hacks 4 | . 4 . . Record 3 | . 3 . . Hauler Manifests 1 | . 1 . . Fabricator Hacks . | . . . . Repair Station Hacks . | . . . . Recycling Unit Hacks . | . . . . Scanalyzer . | . . . . Garrison Access Hacks . | . . . . Unauthorized Hacks . | . . . . Terminals . | . . . . Fabricators . | . . . . Repair Stations . | . . . . Recycling Units . | . . . . Scanalyzers . | . . . . Garrison Access . | . . . . Data Cores Recovered . | . . . . Used . | . . . . Hacking Detections 2 | . 2 . . Full Trace Events 1 | . 1 . . Feedback Events . | . . . . Feedback Blocked . | . . . . Robot Schematics Acquired . | . . . . Robots Built . | . . . . Authchips . | . . . . Time . | . . . . Total Robot Build Rating . | . . . . Part Schematics Acquired . | . . . . Parts Built . | . . . . Authchips . | . . . . Time . | . . . . Total Part Build Rating . | . . . . Parts Repaired . | . . . . Time . | . . . . Parts Recycled . | . . . . Recycled Matter . | . . . . Retrieved Matter . | . . . . Retrieved Components . | . . . . Parts Scanalyzed . | . . . . Part Schematics Acquired . | . . . . Parts Damaged . | . . . . Bothacking | -11 -10 -10 -10 ------------ Run | Yrd Mat Min Sub Used RIF Installer . | . . . . Robots Hacked . | . . . . Non-combat . | . . . . Combat . | . . . . Robot Hacks Applied . | . . . . Relay Couplers Released . | . . . . Fabnet Peak Effective % . | . . . . Robots Rewired . | . . . . Allies Hacked . | . . . . Hacks Repelled . | . . . . Allies | -11 -10 -10 -10 -------- Run | Yrd Mat Min Sub Total Allies 1 | . . 1 . Largest Group 1 | . . 1 . Highest-Rated Group 31 | . . 31 . Highest-Rated Ally 31 | . . 31 . Total Orders . | . . . . Ally Attacks 5 | . . 5 . Total Damage 84 | . . 84 . Kills 2 | . . 2 . Allies Corrupted . | . . . . Allies Melted . | . . . . Intel | -11 -10 -10 -10 ------- Run | Yrd Mat Min Sub Robot Analysis Total . | . . . . Derelict Logs Recovered 3 | . . 2 1 Drone Launches . | . . . . Drone Recoveries . | . . . . Exploration | -11 -10 -10 -10 ------------- Run | Yrd Mat Min Sub Turns Passed 2075 | 100 281 675 1019 Spaces Moved 1204 | 75 150 412 567 Core 19 | 19 . . . Treads . | . . . . Legs 1185 | 56 150 412 567 Wheels . | . . . . Hover . | . . . . Flight . | . . . . Fastest Speed 50 | 50 120 120 120 Average Speed 134 | 102 120 120 154 Slowest Speed 190 | 120 120 120 190 Overloaded Moves . | . . . . Propulsion Burnouts . | . . . . Robots Hopped . | . . . . Cave-ins Triggered 1 | . . 1 . Exploration Rate (%) 42 | 8 33 87 43 Regions Visited 3 Branch Regions 2 Pre-discovered Areas . | . . . . Known Exits Taken . | . . . . Unknown Exits Taken 3 | 1 1 1 . Scrap Searched 4 | . . 1 3 Spaces Dug 40 | . . 40 . Terrain Destroyed 44 | . . 42 2 Melee 35 | . . 35 . Projectile 9 | . . 7 2 AOE . | . . . . Terrain Rammed . | . . . . Walls Destroyed . | . . . . Machines Disabled . | . . . . Actions | -11 -10 -10 -10 --------- Run | Yrd Mat Min Sub Total 1474 | 92 204 502 676 Wait 66 | . 7 9 50 Move 1200 | 74 149 410 567 Hop . | . . . . Pick Up 38 | 9 6 8 15 Fast Attach 3 | . 2 1 . Attach 16 | 5 2 3 6 Detach . | . . . . Swap 19 | 1 5 5 8 Drop 19 | . 5 6 8 Fire 69 | 3 28 20 18 Melee 43 | . . 39 4 Ram . | . . . . Kick . | . . . . Crush . | . . . . Escape Stasis 1 | . . 1 . Rewire . | . . . . Trap . | . . . . Miscellaneous . | . . . . Route ------- -11/Scrapyard -10/Materials -10/Mines (discovered 2 exits: [*Mat] / [*Sub]) -10/Subcaves (discovered 1 exit: [*Mat]) History --------- Turn | Location | Event 2 | -11/Scrapyard | Met Revision 17 65 | -11/Scrapyard | Discovered new exit (range 8) 101 | -11/Scrapyard | Entered Materials 278 | -10/Materials | Discovered new exit (range 18) 300 | -10/Materials | Build established: Mutant 382 | -10/Materials | Entered Mines 437 | -10/Mines | Learned Materials stockpile data 570 | -10/Mines | Received a Mining Laser from a helpful Derelict 629 | -10/Mines | Assembled infested the area 634 | -10/Mines | Assisted by a Guerilla fighting off Assembled 681 | -10/Mines | Discovered new exit (range 16) 715 | -10/Mines | Found a hidden stash of uninstalled traps 757 | -10/Mines | A weapon hastily lodged in a ceiling crevice suddenly fell to the ground 838 | -10/Mines | Build established: Scavenger-Mutant 914 | -10/Mines | Found a damaged Exp. Sensor Array with a note attached 917 | -10/Mines | Found Prototype Device 918 | -10/Mines | Identified Exp. Sensor Array 1043 | -10/Mines | Crushed by falling debris 1043 | -10/Mines | Discovered new exit (range 5) 1057 | -10/Mines | Entered Subcaves 1157 | -10/Subcaves | Discovered new exit (range 17) 1213 | -10/Subcaves | Ambushed by swarm of Subdwellers 1226 | -10/Subcaves | Core integrity fell below 50% 1258 | -10/Subcaves | Lost 5 parts (1p2n1u1w) 1534 | -10/Subcaves | Disturbed a concealed Subdweller 1534 | -10/Subcaves | Ambushed by Subdweller buried in earth 1535 | -10/Subcaves | Core integrity fell below 20% 2076 | -10/Subcaves | Destroyed by S-10 Pest with Light Assault Rifle Last Messages --------------- 02013_ Sub. Monowheel melted. 02013_ Sub. Power Source melted. 02013_ NQ-VWO(R) destroyed. 02014_ Mak. System Restoration Module purges 1% system corruption (2%). 02022_ Acquired 46 matter. 02036_ Mak. System Restoration Module purges 1% system corruption (1%). 02053_ S-10 Pest destroyed. 02058_ 8H-C82(g) suffers critical hit (Destroy). 02058_ 8H-C82(g) destroyed. 02060_ Mak. Leg destroyed. 02061_ HV Slug penetrates Wall. 02067_ Mak. System Restoration Module purges 1% system corruption (0%). 02067_ Dropped Broken Sub. Optics. 02068_ Flight Unit fries itself beyond repair. 02069_ Bore Cannon destroyed. 02072_ S-10 Pest destroyed. 02074_ Destroyed Lgt. Ion Engine. Map ----- +----------------------------------------------------+ | ??????????????????????????????????????## ????# # | | ??????????????????????????????????????? ???##% | | ????????????????????????????????????????# #### ! | | ?????????????????????????????????????????# # ## | | ??????????????????????????????????????????# ##? | | ?????????????????????????????????????????## ### | | ????????????????????????????????????????## | | ???????????????????????????????????????## | | ???????????????????????????????????????# | | ???????????????????????????????????????# " | | ???????????????????????????????????????# " "## | | ???????????????????????????????????? "### | | ???????????????????????? ????????? #####?? | | ?????????????????????? ????? ### #??????? | | ????????????????????## ???#????## ???????? | | ???????????????????## ??? ????# ???????? | | ???????????????????# #?# ""??? ????????? | | ???????????????????? ""### "?? ????????? | | ????????????????????? ## #?### ????????? | | ?????????????????#??? #???#?????????? | | ???????????????### ??? "" #######????????? | | ???????????????# ????# """## ## ####?????? | | ???????????????# ????# ##""" #?????? | | ???????????????# ####?# &"""" ####??? | | ???????????????# ### """%& #??? | | ???????????????# @ " ! " #?## | | ???????????????# ###### ### | | ???????????????## s ;######????## | | ????????????????# ### ;#??????????### | | ????????????????# #??## % ###??????????## | | ????????????????# ????# #???????????# | | ????????????????# ?????# % #??????????# | | ????????????????# ????? ## % #?????????## | | ???????????????? ????? ??# #?????????## | | ??????????????? ????? ??? *% #??????????## | | ??????????????#?????# % ??? ??????????# | | ??????????????????? ??? s ????????# | | ?????????????????? ??? #### ???????# | | ?????????????????# ????#???## ??????# | | ?????????????????## ?????????? ??????### | | ??????????????????## ##????????????? ????###### | | ???????????????????# ??????????????????### # | | ??????????????????? ???????????????????## ## | | ??????????????????????????????????????## ## | | ??????????????????????????????????????# ## | | ??????????????????????????????????????# ## | | ??????????????????????????????????????## | | ???????????????????????????????????????### | | ?????????????????????????????????????????## | | ??????????????????????????????????????????# ### | +----------------------------------------------------+ Best States ------------- Heat Dissipation 39 Energy Generation 15 Energy Capacity 250 Matter Stores 450 Matter Capacity 450 Sight Range 21 Robot Scan Range 20 Terrain Scan Density 10 Evasion (%) 55 Targeting Accuracy 5 Item Schematics ----------------- None Robot Schematics ------------------ None Fabricated ------------ Nothing Alien Tech Used ----------------- None Achievements -------------- I Survived The Infestation Part-time Excavator Shopping List Unlikely Earthworm Challenges ------------ None Game ------ Seed MicroLightningMultirail Manual? 0 Play Time 01:06:33 Cumulative 4.1 hours Start 2024.10.04 @ 00:29:02 End 2024.10.04 @ 02:34:13 Sessions 1 Manual Loads 0 Difficulty Rogue Special Mode None Game No. 2 Rogue 2 Adventurer 0 Explorer 0 Win Type - Total 0 Types 0/0/0/0/0/0/0/0/0 Lore% 1 Gallery% 6 Achievement% 8 Wizard Run 0 Options --------- Layout 1 ASCII 0 Keyboard 0 Movement Mouse Keybinds 0 Fullscreen 2 Font 24/Smallcaps Map View 50x35 Zoom Use 0% Tactical HUD 1 Map Filters NONE Filters NONE Steam 1 RUN: fa5ea054-86b6-477b-990e-657b4cab36a6